fUST/lending_fUST_20250926
["ID","MTS","AMOUNT","RATE_DAILY","PERIOD"]
[387761984,1758838257546,-480.0,0.00022347,2]
[387761985,1758838257556,-819.71,0.00022347,2]
[387761986,1758838257566,-480.0,0.00022348,2]
[387761987,1758838257575,-480.0,0.00022348,2]
[387761988,1758838257587,-480.0,0.00022348,2]
[387761989,1758838257597,-480.0,0.00022348,2]
[387761990,1758838257607,-480.0,0.00022348,2]
[387761991,1758838257617,-324.66409079,0.00022348,2]
[387761992,1758838257629,-537.83,0.00022348,2]
[387761993,1758838257639,-480.0,0.00022348,2]
[387761994,1758838257649,-1097.49,0.00022348,2]
[387761995,1758838257660,-574.87,0.00022348,2]
[387761996,1758838257670,-480.0,0.00022348,2]
[387761997,1758838257680,-480.0,0.00022348,2]
[387761998,1758838257690,-746.0,0.00022348,2]
[387761999,1758838257700,-1188.66,0.00022348,2]
[387762000,1758838257710,-480.0,0.00022348,2]
[387762001,1758838257719,-1267.22,0.00022348,2]
[387762002,1758838257729,-631.04,0.00022348,2]
[387762003,1758838257739,-521.69,0.00022348,2]
[387762004,1758838257748,-841.54,0.00022348,2]
[387762005,1758838257758,-2281.18,0.00022348,2]
[387762006,1758838257768,-480.0,0.00022348,2]
[387762007,1758838257777,-480.0,0.00022348,2]
[387762008,1758838257787,-1278.54,0.00022348,2]
[387762009,1758838257796,-660.24,0.00022348,2]
[387762010,1758838257806,-566.86,0.00022348,2]
[387762011,1758838257816,-482.45,0.00022348,2]
[387762012,1758838257825,-811.64,0.00022348,2]
[387762013,1758838257835,-1124.2,0.00022348,2]
[387762014,1758838257844,-1879.63,0.00022348,2]
[387762015,1758838257854,-480.0,0.00022348,2]
[387762016,1758838257868,-480.0,0.00022348,2]
[387762017,1758838257878,-480.0,0.00022348,2]
[387762018,1758838257887,-480.0,0.00022348,2]
[387762019,1758838257897,-1002.7,0.00022349,2]
[387762020,1758838257907,-480.0,0.00022355,2]
[387762021,1758838257916,-3674.97,0.00022355,2]
[387762022,1758838257926,-722.93,0.00022355,2]
[387762023,1758838257937,-1532.43,0.00022355,2]
[387762024,1758838257947,-480.0,0.00022356,2]
[387762026,1758838257957,-912.02,0.00022356,2]
[387762027,1758838257967,-840.21,0.00022356,2]
[387762029,1758838257977,-1277.34,0.00022357,2]
[387762031,1758838257986,-175.3024982,0.00022383,2]
[387762032,1758838257996,-417.09,0.00022418,2]
[387762034,1758838258005,-151.0,0.00022466,2]
[387762035,1758838258014,-500.0,0.00022472,2]
[387762037,1758838258024,-1000.0,0.000225,2]
[387762038,1758838258034,-518.13,0.00022621,2]
[387762040,1758838258044,-995.98,0.00022621,2]
[387762042,1758838258053,-2557.87,0.00022621,2]
[387762044,1758838258063,-3805.61,0.00022621,2]
[387762046,1758838258073,-480.0,0.00022621,2]
[387762048,1758838258082,-819.71,0.00022621,2]
[387762050,1758838258092,-480.0,0.00022622,2]
[387762052,1758838258102,-480.0,0.00022622,2]
[387762054,1758838258116,-480.0,0.00022622,2]
[387762056,1758838258126,-480.0,0.00022622,2]
[387762058,1758838258135,-480.0,0.00022622,2]
[387762060,1758838258146,-537.83,0.00022622,2]
[387762062,1758838258156,-480.0,0.00022622,2]
[387762064,1758838258165,-1097.49,0.00022622,2]
[387762066,1758838258175,-574.87,0.00022622,2]
[387762068,1758838258185,-480.0,0.00022622,2]
[387762070,1758838258194,-480.0,0.00022622,2]
[387762072,1758838258204,-746.0,0.00022622,2]
[387762074,1758838258214,-1188.66,0.00022622,2]
[387762076,1758838258223,-480.0,0.00022622,2]
[387762077,1758838258233,-1267.22,0.00022622,2]
[387762087,1758838258309,-631.04,0.00022622,2]
[387762089,1758838258318,-521.69,0.00022622,2]
[387762091,1758838258328,-841.54,0.00022622,2]
[387762093,1758838258337,-2281.18,0.00022622,2]
[387762095,1758838258347,-480.0,0.00022622,2]
[387762097,1758838258356,-480.0,0.00022622,2]
[387762098,1758838258369,-1278.54,0.00022622,2]
[387762101,1758838258379,-660.24,0.00022622,2]
[387762103,1758838258390,-566.86,0.00022622,2]
[387762105,1758838258400,-482.45,0.00022622,2]
[387762107,1758838258409,-811.64,0.00022622,2]
[387762109,1758838258418,-1124.2,0.00022622,2]
[387762110,1758838258428,-1879.63,0.00022622,2]
[387762112,1758838258438,-480.0,0.00022622,2]
[387762114,1758838258447,-480.0,0.00022622,2]
[387762116,1758838258457,-480.0,0.00022622,2]
[387762118,1758838258467,-480.0,0.00022622,2]
[387762120,1758838258476,-1002.7,0.00022623,2]
[387762122,1758838258486,-480.0,0.00022629,2]
[387762124,1758838258495,-3674.97,0.00022629,2]
[387762126,1758838258505,-722.93,0.00022629,2]
[387762128,1758838258515,-1532.43,0.00022629,2]
[387762130,1758838258524,-480.0,0.0002263,2]
[387762132,1758838258534,-912.02,0.0002263,2]
[387762134,1758838258543,-840.21,0.0002263,2]
[387762136,1758838258552,-1277.34,0.00022631,2]
[387762138,1758838258561,-800.0,0.00022635,2]
[387762140,1758838258571,-500.0,0.00022639,2]
[387762142,1758838258583,-500.0,0.00022639,2]
[387762143,1758838258594,-500.0,0.00022639,2]
[387762145,1758838258603,-691.91053659,0.00022644,2]
[387762147,1758838258616,-800.0,0.00022647,2]
[387762149,1758838258627,-800.0,0.00022652,2]
[387762151,1758838258637,-1000.0,0.00022673,2]
[387762153,1758838258646,-1000.0,0.00022673,2]
[387762155,1758838258656,-742.22199612,0.00022673,2]
[387762157,1758838258667,-702.87362549,0.00022673,2]
[387762159,1758838258677,-506.80732628,0.00022673,2]
[387762161,1758838258687,-1000.0,0.00022673,2]
[387762163,1758838258697,-1009.17100949,0.00022673,2]
[387762165,1758838258707,-1000.0,0.00022673,2]
[387762167,1758838258716,-1000.0,0.00022673,2]
[387762169,1758838258725,-1000.0,0.00022673,2]
[387762171,1758838258735,-500.0,0.00022746,2]
[387762173,1758838258745,-381.9159192,0.0002276,2]
[387762175,1758838258755,-500.0,0.00022781,2]
[387762177,1758838258764,-160.0,0.000228,7]
[387762179,1758838258774,-800.0,0.00022827,2]
[387762182,1758838258784,-560.0,0.00022838,2]
[387762184,1758838258794,-800.0,0.00022871,2]
[387762186,1758838258803,-518.13,0.00022895,2]
[387762188,1758838258813,-995.98,0.00022895,2]
[387762190,1758838258822,-2557.87,0.00022895,2]
[387762192,1758838258832,-3805.61,0.00022895,2]
[387762194,1758838258842,-480.0,0.00022895,2]
[387762196,1758838258851,-819.71,0.00022895,2]
[387762198,1758838258863,-480.0,0.00022896,2]
[387762199,1758838258873,-480.0,0.00022896,2]
[387762201,1758838258882,-480.0,0.00022896,2]
[387762203,1758838258892,-480.0,0.00022896,2]
[387762205,1758838258901,-480.0,0.00022896,2]
[387762207,1758838258910,-537.83,0.00022896,2]
[387762209,1758838258920,-480.0,0.00022896,2]
[387762211,1758838258930,-1097.49,0.00022896,2]
[387762213,1758838258939,-574.87,0.00022896,2]
[387762215,1758838258950,-480.0,0.00022896,2]
[387762217,1758838258959,-480.0,0.00022896,2]
[387762219,1758838258969,-746.0,0.00022896,2]
[387762221,1758838258979,-1188.66,0.00022896,2]
[387762223,1758838258989,-480.0,0.00022896,2]
[387762225,1758838258998,-1267.22,0.00022896,2]
[387762227,1758838259008,-631.04,0.00022896,2]
[387762229,1758838259018,-521.69,0.00022896,2]
[387762231,1758838259027,-841.54,0.00022896,2]
[387762233,1758838259037,-2281.18,0.00022896,2]
[387762235,1758838259047,-480.0,0.00022896,2]
[387762237,1758838259057,-489.7,0.00022896,2]
[387762239,1758838259066,-1278.54,0.00022896,2]
[387762241,1758838259076,-660.24,0.00022896,2]
[387762243,1758838259086,-566.86,0.00022896,2]
[387762246,1758838259096,-482.45,0.00022896,2]
[387762247,1758838259106,-811.64,0.00022896,2]
[387762249,1758838259116,-1124.2,0.00022896,2]
[387762252,1758838259126,-1879.63,0.00022896,2]
[387762254,1758838259136,-480.0,0.00022896,2]
[387762255,1758838259148,-480.0,0.00022896,2]
[387762257,1758838259157,-480.0,0.00022896,2]
[387762259,1758838259167,-480.0,0.00022896,2]
[387762261,1758838259176,-1002.7,0.00022897,2]
[387762264,1758838259186,-480.0,0.00022903,2]
[387762266,1758838259195,-3674.97,0.00022903,2]
[387762268,1758838259206,-722.93,0.00022903,2]
[387762270,1758838259216,-1532.43,0.00022903,2]
[387762272,1758838259228,-480.0,0.00022904,2]
[387762274,1758838259238,-912.02,0.00022904,2]
[387762276,1758838259247,-840.21,0.00022904,2]
[387762278,1758838259256,-1277.34,0.00022905,2]
[387762280,1758838259266,-503.0,0.00022952,2]
[387762282,1758838259276,-160.0,0.00023,3]
[387762284,1758838259285,-2349.19915005,0.00023,2]
[387762286,1758838259295,-20114.59618664,0.00023,3]
[387762288,1758838259304,-233.66602051,0.00023,3]
[387762290,1758838259313,-160.0,0.00023,3]
[387762292,1758838259323,-160.0,0.00023,3]
[387762294,1758838259333,-417.15472785,0.00023,3]
[387762295,1758838259342,-160.0,0.00023,3]
[387762297,1758838259352,-160.0,0.00023,3]
[387762299,1758838259366,-160.0,0.00023,2]
[387762301,1758838259376,-150.2454,0.00023,2]
[387762303,1758838259385,-1000.0,0.00023,2]
[387762305,1758838259395,-500.0,0.0002302,2]
[387762307,1758838259404,-2949.90918836,0.00023116,2]
[387762309,1758838259414,-500.0,0.00023132,2]
[387762311,1758838259424,-518.13,0.00023169,2]
[387762313,1758838259433,-995.98,0.00023169,2]
[387762315,1758838259442,-2557.87,0.00023169,2]
[387762317,1758838259452,-3805.61,0.00023169,2]
[387762319,1758838259462,-480.0,0.00023169,2]
[387762321,1758838259472,-819.71,0.00023169,2]
[387762323,1758838259482,-480.0,0.0002317,2]
[387762325,1758838259491,-480.0,0.0002317,2]
[387762327,1758838259501,-480.0,0.0002317,2]
[387762329,1758838259510,-480.0,0.0002317,2]
[387762331,1758838259519,-480.0,0.0002317,2]
[387762333,1758838259529,-537.83,0.0002317,2]
[387762335,1758838259539,-434.51472819,0.0002317,2]
[387762337,1758838259549,-1097.49,0.0002317,2]
[387762339,1758838259558,-574.87,0.0002317,2]
[387762341,1758838259568,-480.0,0.0002317,2]
[387762342,1758838259578,-480.0,0.0002317,2]
[387762345,1758838259592,-746.0,0.0002317,2]
[387762346,1758838259601,-1188.66,0.0002317,2]
[387762348,1758838259612,-480.0,0.0002317,2]
[387762351,1758838259622,-1267.22,0.0002317,2]
[387762352,1758838259633,-631.04,0.0002317,2]
[387762355,1758838259643,-521.69,0.0002317,2]
[387762357,1758838259652,-841.54,0.0002317,2]
[387762359,1758838259664,-2281.18,0.0002317,2]
[387762367,1758838259733,-480.0,0.0002317,2]
[387762369,1758838259743,-1278.54,0.0002317,2]
[387762371,1758838259752,-660.24,0.0002317,2]
[387762373,1758838259762,-566.86,0.0002317,2]
[387762375,1758838259771,-482.45,0.0002317,2]
[387762377,1758838259780,-811.64,0.0002317,2]
[387762379,1758838259790,-1124.2,0.0002317,2]
[387762381,1758838259799,-1879.63,0.0002317,2]
[387762383,1758838259808,-480.0,0.0002317,2]
[387762385,1758838259817,-480.0,0.0002317,2]
[387762387,1758838259827,-480.0,0.0002317,2]
[387762389,1758838259836,-215.7,0.0002317,2]
[387762391,1758838259846,-1002.7,0.00023171,2]
[387762393,1758838259856,-480.0,0.00023177,2]
[387762395,1758838259866,-3674.97,0.00023177,2]
[387762397,1758838259875,-722.93,0.00023177,2]
[387762399,1758838259885,-1532.43,0.00023177,2]
[387762401,1758838259895,-480.0,0.00023178,2]
[387762403,1758838259904,-912.02,0.00023178,2]
[387762405,1758838259913,-840.21,0.00023178,2]
[387762407,1758838259923,-1277.34,0.00023179,2]
[387762409,1758838259933,-1000.0,0.00023187,2]
[387762411,1758838259943,-1000.0,0.00023187,2]
[387762413,1758838259953,-1000.0,0.00023187,2]
[387762415,1758838259962,-1500.0,0.00023221,2]
[387762417,1758838259972,-1500.0,0.00023221,2]
[387762419,1758838259982,-509.55569589,0.00023221,2]
[387762421,1758838259991,-1500.0,0.00023221,2]
[387762423,1758838260000,-1500.0,0.00023221,2]
[387762425,1758838260010,-449.93720386,0.00023221,2]
[387762427,1758838260020,-502.09635083,0.00023287,2]
[387762429,1758838260029,-151.0,0.00023288,7]
[387762431,1758838260039,-162.534835,0.00023288,7]
[387762433,1758838260049,-500.0,0.00023294,2]
[387762435,1758838260059,-500.0,0.00023352,2]
[387762437,1758838260068,-800.0,0.00023365,2]
[387762439,1758838260078,-500.0,0.00023378,2]
[387762441,1758838260087,-660.0,0.00023386,2]
[387762443,1758838260097,-800.0,0.00023387,2]
[387762445,1758838260108,-625.63,0.00023437,2]
[387762447,1758838260118,-500.0,0.00023442,2]
[387762449,1758838260128,-518.13,0.00023443,2]
[387762451,1758838260137,-995.98,0.00023443,2]
[387762453,1758838260146,-2557.87,0.00023443,2]
[387762455,1758838260157,-3805.61,0.00023443,2]
[387762457,1758838260167,-480.0,0.00023443,2]
[387762460,1758838260179,-819.71,0.00023443,2]
[387762462,1758838260188,-480.0,0.00023444,2]
[387762464,1758838260198,-480.0,0.00023444,2]
[387762466,1758838260208,-480.0,0.00023444,2]
[387762468,1758838260217,-480.0,0.00023444,2]
[387762470,1758838260227,-480.0,0.00023444,2]
[387762472,1758838260236,-537.83,0.00023444,2]
[387762474,1758838260246,-1097.49,0.00023444,2]
[387762475,1758838260256,-574.87,0.00023444,2]
[387762477,1758838260265,-480.0,0.00023444,2]
[387762479,1758838260274,-480.0,0.00023444,2]
[387762481,1758838260284,-746.0,0.00023444,2]
[387762483,1758838260294,-1188.66,0.00023444,2]
[387762485,1758838260303,-480.0,0.00023444,2]
[387762487,1758838260312,-1267.22,0.00023444,2]
[387762489,1758838260321,-631.04,0.00023444,2]
[387762491,1758838260331,-521.69,0.00023444,2]
[387762493,1758838260341,-841.54,0.00023444,2]
[387762496,1758838260350,-2281.18,0.00023444,2]
[387762497,1758838260362,-480.0,0.00023444,2]
[387762500,1758838260373,-1278.54,0.00023444,2]
[387762502,1758838260384,-660.24,0.00023444,2]
[387762504,1758838260397,-566.86,0.00023444,2]
[387762506,1758838260407,-482.45,0.00023444,2]
[387762508,1758838260417,-811.64,0.00023444,2]
[387762510,1758838260428,-1124.2,0.00023444,2]
[387762511,1758838260438,-1879.63,0.00023444,2]
[387762512,1758838260448,-480.0,0.00023444,2]
[387762513,1758838260459,-239.72721635,0.00023444,2]
[387762514,1758838260470,-480.0,0.00023444,2]
[387762516,1758838260480,-1002.7,0.00023445,2]
[387762518,1758838260491,-480.0,0.00023451,2]
[387762520,1758838260503,-3674.97,0.00023451,2]
[387762522,1758838260515,-722.93,0.00023451,2]
[387762524,1758838260525,-1532.43,0.00023451,2]
[387762526,1758838260537,-480.0,0.00023452,2]
[387762528,1758838260548,-912.02,0.00023452,2]
[387762530,1758838260558,-840.21,0.00023452,2]
[387762532,1758838260568,-1277.34,0.00023453,2]
[387762534,1758838260579,-1000.0,0.000235,2]
[387762535,1758838260593,-500.0,0.00023568,2]
[387762536,1758838260603,-800.0,0.00023598,2]
[387762537,1758838260623,-150.0,0.00023633,2]
[387762538,1758838260633,-500.0,0.00023643,2]
[387762539,1758838260643,-150.0,0.0002366,2]
[387762540,1758838260652,-150.0,0.0002366,2]
[387762541,1758838260663,-978.0,0.0002366,2]
[387762542,1758838260672,-635.0,0.0002366,2]
[387762543,1758838260682,-2160.0,0.0002366,2]
[387762544,1758838260692,-211.049101,0.0002366,2]
[387762545,1758838260702,-1664.38,0.000237,2]
[387762546,1758838260711,-518.13,0.00023717,2]
[387762547,1758838260720,-995.98,0.00023717,2]
[387762549,1758838260730,-2557.87,0.00023717,2]
[387762551,1758838260739,-3805.61,0.00023717,2]
[387762553,1758838260749,-480.0,0.00023717,2]
[387762555,1758838260759,-819.71,0.00023717,2]
[387762557,1758838260768,-562.55500115,0.00023718,2]
[387762559,1758838260777,-480.0,0.00023718,2]
[387762561,1758838260787,-480.0,0.00023718,2]
[387762563,1758838260796,-480.0,0.00023718,2]
[387762565,1758838260805,-480.0,0.00023718,2]
[387762566,1758838260815,-537.83,0.00023718,2]
[387762568,1758838260824,-1097.49,0.00023718,2]
[387762570,1758838260834,-574.87,0.00023718,2]
[387762572,1758838260844,-480.0,0.00023718,2]
[387762575,1758838260853,-221.20475736,0.00023718,2]
[387762576,1758838260866,-746.0,0.00023718,2]
[387762579,1758838260876,-1188.66,0.00023718,2]
[387762581,1758838260886,-480.0,0.00023718,2]
[387762583,1758838260896,-1267.22,0.00023718,2]
[387762585,1758838260905,-631.04,0.00023718,2]
[387762587,1758838260915,-521.69,0.00023718,2]
[387762589,1758838260925,-841.54,0.00023718,2]
[387762591,1758838260934,-2281.18,0.00023718,2]
[387762593,1758838260943,-480.0,0.00023718,2]
[387762595,1758838260954,-1278.54,0.00023718,2]
[387762597,1758838260963,-660.24,0.00023718,2]
[387762599,1758838260973,-566.86,0.00023718,2]
[387762601,1758838260982,-482.45,0.00023718,2]
[387762603,1758838260992,-811.64,0.00023718,2]
[387762606,1758838261002,-1124.2,0.00023718,2]
[387762607,1758838261069,-1879.63,0.00023718,2]
[387762608,1758838261079,-480.0,0.00023718,2]
[387762609,1758838261088,-455.82,0.00023718,2]
[387762610,1758838261098,-1002.7,0.00023719,2]
[387762611,1758838261109,-480.0,0.00023725,2]
[387762612,1758838261119,-3674.97,0.00023725,2]
[387762613,1758838261130,-722.93,0.00023725,2]
[387762614,1758838261140,-1532.43,0.00023725,2]
[387762615,1758838261149,-480.0,0.00023726,2]
[387762616,1758838261159,-912.02,0.00023726,2]
[387762617,1758838261169,-840.21,0.00023726,2]
[387762618,1758838261178,-1277.34,0.00023727,2]
[387762619,1758838261189,-1500.0,0.00023735,2]
[387762620,1758838261199,-1500.0,0.00023735,2]
[387762621,1758838261209,-1500.0,0.00023735,2]
[387762622,1758838261218,-2000.0,0.00023769,2]
[387762623,1758838261228,-234.08645297,0.00023769,2]
[387762624,1758838261237,-311.22392608,0.00023769,2]
[387762625,1758838261247,-782.34097763,0.00023769,2]
[387762626,1758838261257,-800.0,0.0002378,2]
[387762627,1758838261267,-500.0,0.00023842,2]
[387762628,1758838261276,-500.0,0.00023894,2]
[387762629,1758838261286,-500.0,0.00023894,2]
[387762630,1758838261295,-3000.0,0.000239,2]
[387762631,1758838261305,-500.0,0.00023909,2]
[387762632,1758838261314,-500.0,0.00023909,2]
[387762633,1758838261324,-4881.412427,0.0002391,2]
[387762634,1758838261333,-760.0,0.00023934,2]
[387762635,1758838261343,-327.74066599,0.00023955,2]
[387762636,1758838261352,-500.0,0.00023955,2]
[387762637,1758838261365,-500.0,0.00023955,2]
[387762638,1758838261375,-217.95449826,0.00023963,2]
[387762639,1758838261384,-500.0,0.00023963,2]
[387762640,1758838261393,-500.0,0.0002399,2]
[387762641,1758838261403,-500.0,0.0002399,2]
[387762642,1758838261413,-500.0,0.0002399,2]
[387762643,1758838261422,-598.66294434,0.0002399,2]
[387762644,1758838261431,-500.0,0.0002399,2]
[387762645,1758838261441,-518.13,0.00023991,2]
[387762646,1758838261451,-995.98,0.00023991,2]
[387762647,1758838261461,-2557.87,0.00023991,2]
[387762648,1758838261471,-3805.61,0.00023991,2]
[387762649,1758838261480,-480.0,0.00023991,2]
[387762650,1758838261490,-819.71,0.00023991,2]
[387762651,1758838261500,-480.0,0.00023992,2]
[387762652,1758838261511,-595.11068675,0.00023992,2]
[387762653,1758838261520,-480.0,0.00023992,2]
[387762654,1758838261529,-480.0,0.00023992,2]
[387762655,1758838261540,-537.83,0.00023992,2]
[387762656,1758838261550,-1097.49,0.00023992,2]
[387762657,1758838261559,-574.87,0.00023992,2]
[387762658,1758838261569,-480.0,0.00023992,2]
[387762659,1758838261580,-746.0,0.00023992,2]
[387762660,1758838261592,-1188.66,0.00023992,2]
[387762661,1758838261601,-480.0,0.00023992,2]
[387762662,1758838261613,-1267.22,0.00023992,2]
[387762663,1758838261622,-631.04,0.00023992,2]
[387762664,1758838261634,-521.69,0.00023992,2]
[387762665,1758838261643,-841.54,0.00023992,2]
[387762666,1758838261653,-2281.18,0.00023992,2]
[387762667,1758838261662,-480.0,0.00023992,2]
[387762668,1758838261671,-1278.54,0.00023992,2]
[387762669,1758838261681,-660.24,0.00023992,2]
[387762670,1758838261690,-566.86,0.00023992,2]
[387762671,1758838261699,-482.45,0.00023992,2]
[387762672,1758838261708,-811.64,0.00023992,2]
[387762673,1758838261717,-1124.2,0.00023992,2]
[387762674,1758838261726,-1879.63,0.00023992,2]
[387762675,1758838261735,-480.0,0.00023992,2]
[387762676,1758838261745,-1002.7,0.00023993,2]
[387762677,1758838261755,-480.0,0.00023999,2]
[387762678,1758838261764,-3674.97,0.00023999,2]
[387762679,1758838261773,-722.93,0.00023999,2]
[387762680,1758838261783,-1532.43,0.00023999,2]
[387762681,1758838261792,-8265.64650398,0.00024,2]
[387762682,1758838261801,-1710.396665,0.00024,2]
[387762683,1758838261810,-458.60649022,0.00024,2]
[387762684,1758838261819,-417.15472785,0.00024,3]
[387762685,1758838261828,-480.0,0.00024,2]
[387762686,1758838261838,-912.02,0.00024,2]
[387762687,1758838261847,-840.21,0.00024,2]
[387762688,1758838261856,-174.0,0.00024,3]
[387762689,1758838261868,-174.0,0.00024,3]
[387762690,1758838261877,-174.0,0.00024,3]
[387762691,1758838261887,-174.0,0.00024,3]
[387762692,1758838261897,-177.81496533,0.00024,3]
[387762693,1758838261906,-162.0,0.00024,3]
[387762694,1758838261916,-1000.0,0.00024,2]
[387762695,1758838261925,-1277.34,0.00024001,2]
[387762696,1758838261935,-500.0,0.0002403,2]
[387762697,1758838261944,-500.0,0.00024059,2]
[387762698,1758838261953,-250.0,0.000241,10]
[387762699,1758838261963,-200.0,0.00024109,2]
[387762700,1758838261972,-200.0,0.00024109,2]
[387762701,1758838261981,-200.0,0.00024109,2]
[387762702,1758838261991,-200.0,0.00024109,2]
[387762703,1758838262000,-293.71008046,0.00024109,2]
[387762704,1758838262012,-281.80670484,0.00024116,2]
[387762705,1758838262021,-6834.86608173,0.00024166,2]
[387762706,1758838262030,-2949.90918836,0.00024187,2]
[387762707,1758838262040,-250.0,0.000242,10]
[387762708,1758838262050,-518.13,0.00024265,2]
[387762709,1758838262059,-995.98,0.00024265,2]
[387762710,1758838262068,-2557.87,0.00024265,2]
[387762711,1758838262078,-3805.61,0.00024265,2]
[387762712,1758838262088,-480.0,0.00024265,2]
[387762713,1758838262098,-819.71,0.00024265,2]
[387762714,1758838262107,-480.0,0.00024266,2]
[387762715,1758838262121,-480.0,0.00024266,2]
[387762716,1758838262131,-480.0,0.00024266,2]
[387762717,1758838262140,-537.83,0.00024266,2]
[387762718,1758838262150,-1097.49,0.00024266,2]
[387762719,1758838262160,-574.87,0.00024266,2]
[387762720,1758838262170,-480.0,0.00024266,2]
[387762721,1758838262179,-746.0,0.00024266,2]
[387762722,1758838262189,-1188.66,0.00024266,2]
[387762723,1758838262198,-480.0,0.00024266,2]
[387762724,1758838262267,-1267.22,0.00024266,2]
[387762725,1758838262276,-631.04,0.00024266,2]
[387762726,1758838262285,-521.69,0.00024266,2]
[387762727,1758838262294,-841.54,0.00024266,2]
[387762728,1758838262302,-2281.18,0.00024266,2]
[387762729,1758838262311,-480.0,0.00024266,2]
[387762730,1758838262320,-1278.54,0.00024266,2]
[387762731,1758838262329,-660.24,0.00024266,2]
[387762732,1758838262339,-566.86,0.00024266,2]
[387762733,1758838262349,-482.45,0.00024266,2]
[387762734,1758838262360,-811.64,0.00024266,2]
[387762735,1758838262370,-1124.2,0.00024266,2]
[387762736,1758838262379,-1879.63,0.00024266,2]
[387762737,1758838262389,-480.0,0.00024266,2]
[387762738,1758838262399,-1002.7,0.00024267,2]
[387762739,1758838262408,-480.0,0.00024273,2]
[387762740,1758838262418,-3674.97,0.00024273,2]
[387762741,1758838262428,-722.93,0.00024273,2]
[387762742,1758838262438,-1532.43,0.00024273,2]
[387762743,1758838262447,-480.0,0.00024274,2]
[387762744,1758838262456,-912.02,0.00024274,2]
[387762745,1758838262466,-840.21,0.00024274,2]
[387762746,1758838262476,-1277.34,0.00024275,2]
[387762747,1758838262486,-503.24530109,0.00024283,2]
[387762748,1758838262496,-1007.13965219,0.00024283,2]
[387762749,1758838262505,-255.776446,0.000243,10]
[387762750,1758838262515,-2500.0,0.00024317,2]
[387762751,1758838262525,-406.84464171,0.00024322,2]
[387762752,1758838262534,-500.0,0.00024366,2]
[387762753,1758838262544,-160.0,0.000244,7]
[387762754,1758838262553,-500.0,0.000244,2]
[387762755,1758838262562,-250.0,0.00024404,2]
[387762756,1758838262572,-549.24933527,0.00024442,2]
[387762757,1758838262582,-602.65170465,0.00024442,2]
[387762758,1758838262595,-834.18,0.00024456,2]
[387762759,1758838262605,-500.66169981,0.00024457,2]
[387762760,1758838262616,-501.05629741,0.00024457,2]
[387762761,1758838262625,-860.0,0.00024482,2]
[387762762,1758838262637,-663.67254147,0.000245,2]
[387762763,1758838262646,-500.0,0.00024502,2]
[387762764,1758838262655,-500.0,0.00024536,2]
[387762765,1758838262665,-501.06641698,0.00024538,2]
[387762766,1758838262675,-1000.0,0.00024538,2]
[387762767,1758838262684,-504.43716036,0.00024538,2]
[387762768,1758838262694,-518.13,0.00024539,2]
[387762769,1758838262703,-995.98,0.00024539,2]
[387762770,1758838262713,-2557.87,0.00024539,2]